bitfinex-derivatives/quotes_BTCF0:USTF0_20250930
["timestamp","ask_amount","ask_price","bid_price","bid_amount"]
[1759212227292,2.26107157,113950.0,113940.0,0.03218]
[1759212227792,1.45091157,113950.0,113940.0,0.03218]
[1759212227992,2.26099157,113950.0,113940.0,0.03218]
[1759212229803,2.26071157,113950.0,113940.0,0.03218]
[1759212230704,2.26059157,113950.0,113940.0,0.03218]
[1759212232004,2.26039157,113950.0,113940.0,0.03218]
[1759212232806,1.45091157,113950.0,113940.0,0.03218]
[1759212233007,2.26043157,113950.0,113940.0,0.03218]
[1759212235595,1.45091157,113950.0,113940.0,0.03218]
[1759212235794,2.25995157,113950.0,113940.0,0.03218]
[1759212236010,1.45091157,113950.0,113940.0,0.03218]
[1759212236306,2.25987157,113950.0,113940.0,0.03218]
[1759212242013,2.25891157,113950.0,113940.0,0.03218]
[1759212242710,2.25891157,113950.0,113940.0,0.03138]
[1759212244419,2.25891157,113950.0,113940.0,0.0084]
[1759212245109,2.25891157,113950.0,113940.0,0.03159]
[1759212246108,2.25891157,113950.0,113940.0,0.0084]
[1759212250508,2.25891157,113950.0,113940.0,0.03159]
[1759212253214,2.25891157,113950.0,113940.0,0.0084]
[1759212253414,1.85891157,113950.0,113940.0,0.0084]
[1759212253620,1.85891157,113950.0,113940.0,0.008]
[1759212253920,1.85891157,113950.0,113940.0,0.0084]
[1759212254121,1.85891157,113950.0,113940.0,0.008]
[1759212254619,1.85891157,113950.0,113940.0,0.0084]
[1759212257016,1.05091157,113950.0,113940.0,0.0084]
[1759212257822,1.85835157,113950.0,113940.0,0.0084]
[1759212260220,1.85831157,113950.0,113940.0,0.0084]
[1759212261024,1.05091157,113950.0,113940.0,0.0084]
[1759212261418,1.85831157,113950.0,113940.0,0.0084]
[1759212263920,1.05091157,113950.0,113940.0,0.0084]
[1759212264222,1.85831157,113950.0,113940.0,0.0084]
[1759212265816,1.05091157,113950.0,113940.0,0.0084]
[1759212266023,1.85831157,113950.0,113940.0,0.0084]
[1759212266522,1.05091157,113950.0,113940.0,0.0084]
[1759212266916,1.85831157,113950.0,113940.0,0.0084]
[1759212274319,1.85855819,113950.0,113940.0,0.0084]
[1759212275127,1.85855819,113950.0,113940.0,0.008]
[1759212275327,1.85855819,113950.0,113940.0,0.0084]
[1759212277625,1.85855819,113950.0,113940.0,0.00397484]
[1759212277925,0.1087557,113930.0,113920.0,0.18042791]
[1759212278130,0.72998283,113930.0,113920.0,0.1172375]
[1759212278327,0.72998283,113930.0,113920.0,0.02952]
[1759212278623,2.00189627,113930.0,113920.0,0.0008]
[1759212279025,2.00189627,113930.0,113920.0,0.0218]
[1759212279335,2.00889627,113930.0,113920.0,0.0492]
[1759212279519,2.01189627,113930.0,113920.0,0.0572]
[1759212280134,2.01489627,113930.0,113920.0,0.0622]
[1759212281035,2.00189627,113930.0,113920.0,0.0222]
[1759212281538,0.91992256,113930.0,113920.0,0.0218]
[1759212281837,2.00189627,113930.0,113920.0,0.0222]
[1759212283238,1.19461627,113930.0,113920.0,0.0222]
[1759212283436,2.00189627,113930.0,113920.0,0.0222]
[1759212286548,1.19461627,113930.0,113920.0,0.0222]
[1759212286748,2.00185627,113930.0,113920.0,0.0222]
[1759212286948,1.19461627,113930.0,113920.0,0.0222]
[1759212287146,2.00185627,113930.0,113920.0,0.0222]
[1759212296254,1.19461627,113930.0,113920.0,0.0222]
[1759212296946,2.00173627,113930.0,113920.0,0.0222]
[1759212297346,1.19461627,113930.0,113920.0,0.0222]
[1759212297750,2.00173627,113930.0,113920.0,0.0222]
[1759212298856,0.91992256,113930.0,113920.0,0.0222]
[1759212299156,2.00173627,113930.0,113920.0,0.1099235]
[1759212299456,2.00173627,113930.0,113920.0,0.0222]
[1759212299656,1.19461627,113930.0,113920.0,0.0222]
[1759212299845,2.00169627,113930.0,113920.0,0.0222]
[1759212305058,2.00169627,113930.0,113920.0,0.1099245]
[1759212306262,1.19461627,113930.0,113920.0,0.1099245]
[1759212306461,2.00157627,113930.0,113920.0,0.1099245]
[1759212307658,1.19461627,113930.0,113920.0,0.1099245]
[1759212307858,2.00157627,113930.0,113920.0,0.1099245]
[1759212308159,1.19461627,113930.0,113920.0,0.1099245]
[1759212308360,2.00153627,113930.0,113920.0,0.1099245]
[1759212308861,2.00153627,113930.0,113920.0,0.1229745]
[1759212309661,1.19461627,113930.0,113920.0,0.1229745]
[1759212310256,0.11192344,113930.0,113920.0,0.5229745]
[1759212310562,0.0908656,113930.0,113920.0,1.15846821]
[1759212311163,0.56046232,113930.0,113920.0,0.79766821]
[1759212311357,0.83515603,113930.0,113920.0,0.5229745]
[1759212311556,0.74743923,113930.0,113920.0,0.5229745]
[1759212311764,0.83515503,113930.0,113920.0,0.43525]
[1759212312266,0.83515503,113930.0,113920.0,0.5229735]
[1759212312966,0.74743923,113930.0,113920.0,0.5229735]
[1759212313364,1.55427923,113930.0,113920.0,0.5229735]
[1759212314768,0.74743923,113930.0,113920.0,0.5229735]
[1759212314970,1.55423923,113930.0,113920.0,0.5229735]
[1759212316171,1.55419923,113930.0,113920.0,0.5229735]
[1759212317667,0.74743923,113930.0,113920.0,0.5229735]
[1759212319466,0.72635931,113930.0,113920.0,0.5229735]
[1759212319667,0.83514077,113930.0,113920.0,0.43525]
[1759212320567,0.83514077,113930.0,113920.0,0.5229745]
[1759212320769,0.83514077,113930.0,113920.0,0.43525]
[1759212328077,0.83514077,113930.0,113920.0,0.5229745]
[1759212328579,1.64162077,113930.0,113920.0,0.5229745]
[1759212329080,0.74742497,113930.0,113920.0,0.5229735]
[1759212329378,1.55386497,113930.0,113920.0,0.5229735]
[1759212329580,0.74742497,113930.0,113920.0,0.5229735]
[1759212330278,0.38662497,113930.0,113920.0,0.5229735]
[1759212334382,0.38659576,113930.0,113920.0,0.797638]
[1759212334580,0.38659576,113930.0,113920.0,0.5229735]
[1759212334883,0.3655301,113930.0,113920.0,0.797638]
[1759212335077,0.47432583,113930.0,113920.0,0.797638]
[1759212336586,0.38661013,113930.0,113920.0,0.797638]
[1759212338682,0.0698256,113930.0,113920.0,1.0723025]
[1759212338984,1.9888141,113940.0,113930.0,0.1227758]
[1759212339186,1.9888141,113940.0,113930.0,0.3974403]
[1759212339888,1.1826141,113940.0,113930.0,0.3974403]
[1759212340080,1.1906141,113940.0,113930.0,0.4034403]
[1759212340278,1.1946141,113940.0,113930.0,0.4064403]
[1759212340688,1.1069045,113940.0,113930.0,0.4064403]
[1759212340886,1.21570168,113940.0,113930.0,0.4064403]
[1759212341280,1.1946126,113940.0,113930.0,0.4064403]
[1759212344188,0.7572126,113940.0,113930.0,0.4064403]
[1759212344682,1.0318771,113940.0,113930.0,0.1317758]
[1759212344882,1.0448271,113940.0,113930.0,0.1317758]
[1759212345986,1.0318771,113940.0,113930.0,0.1317758]
[1759212346187,1.8378371,113940.0,113930.0,0.1317758]
[1759212346988,1.85890713,113940.0,113930.0,0.1317758]
[1759212347487,1.85890713,113940.0,113930.0,0.4064403]
[1759212348190,1.8507871,113940.0,113930.0,0.1317758]
[1759212348388,1.8507871,113940.0,113930.0,0.1181858]
[1759212349591,1.8507871,113940.0,113930.0,0.1311358]
[1759212349886,1.8378371,113940.0,113930.0,0.1311358]
[1759212350193,1.8377571,113940.0,113930.0,0.1311358]
[1759212350384,1.8377571,113940.0,113930.0,0.4058003]
[1759212351091,1.0318771,113940.0,113930.0,0.4058003]
[1759212351390,1.8377171,113940.0,113930.0,0.4058003]
[1759212352696,1.85877778,113940.0,113930.0,0.4058003]
[1759212353291,1.85873778,113940.0,113930.0,0.4058003]
[1759212353792,1.05293778,113940.0,113930.0,0.4058003]
[1759212354086,1.85869778,113940.0,113930.0,0.4058003]
[1759212354292,1.05293778,113940.0,113930.0,0.4058003]
[1759212354488,1.85869778,113940.0,113930.0,0.4058003]
[1759212355095,1.05293778,113940.0,113930.0,0.4058003]
[1759212355295,1.85865778,113940.0,113930.0,0.4058003]
[1759212356189,1.85865778,113940.0,113930.0,0.1311358]
[1759212356797,1.85865778,113940.0,113930.0,0.4058003]
[1759212357597,1.85865778,113940.0,113930.0,0.1311358]
[1759212359801,1.05293778,113940.0,113930.0,0.1311358]
[1759212360103,1.85857778,113940.0,113930.0,0.1311358]
[1759212360297,1.22150068,113940.0,113930.0,0.1311358]
[1759212360602,1.49616518,113940.0,113930.0,0.4058003]
[1759212360803,1.77082968,113940.0,113930.0,0.4058003]
[1759212360990,1.49616518,113940.0,113930.0,0.4058003]
[1759212361392,1.58387418,113940.0,113930.0,0.4058003]
[1759212363312,1.85853868,113940.0,113930.0,0.4058003]
[1759212364309,1.837478,113940.0,113930.0,0.4058003]
[1759212364506,1.87150917,113940.0,113930.0,0.1311357]
[1759212364701,1.87150917,113940.0,113930.0,0.03047]
[1759212366112,1.87150917,113940.0,113930.0,0.1181867]
[1759212369912,1.87150917,113940.0,113930.0,0.03047]
[1759212374011,1.06590917,113940.0,113930.0,0.03047]
[1759212374220,1.87118917,113940.0,113930.0,0.03047]
[1759212377822,1.87110917,113940.0,113930.0,0.03047]
[1759212386818,1.87086917,113940.0,113930.0,0.03047]
[1759212387725,1.87086917,113940.0,113930.0,0.009]
[1759212387922,1.06590917,113940.0,113930.0,0.03192]
[1759212388122,1.87082917,113940.0,113930.0,0.03192]
[1759212388322,1.87082917,113940.0,113930.0,0.03232]
[1759212388831,1.06590917,113940.0,113930.0,0.03232]
[1759212389626,1.87078917,113940.0,113930.0,0.03232]
[1759212392230,1.06590917,113940.0,113930.0,0.03232]
[1759212392430,1.87078917,113940.0,113930.0,0.03232]
[1759212392830,2.23150917,113940.0,113930.0,0.03232]
[1759212393232,1.42670917,113940.0,113930.0,0.03232]
[1759212393428,2.23150917,113940.0,113930.0,0.03232]
[1759212394232,1.95680804,113940.0,113930.0,0.03232]
[1759212394431,1.15204804,113940.0,113930.0,0.03232]
[1759212394633,1.95676634,113940.0,113930.0,0.03232]
[1759212395330,1.15204634,113940.0,113930.0,0.03232]
[1759212395533,1.95676634,113940.0,113930.0,0.03232]
[1759212398030,1.15204634,113940.0,113930.0,0.03232]
[1759212398232,1.95668634,113940.0,113930.0,0.03232]
[1759212402039,1.15204634,113940.0,113930.0,0.03232]
[1759212402344,1.95660634,113940.0,113930.0,0.03232]
[1759212403940,1.15204634,113940.0,113930.0,0.03232]
[1759212404142,1.95656634,113940.0,113930.0,0.1200363]
[1759212404739,1.95656634,113940.0,113930.0,0.03232]
[1759212405445,1.15204634,113940.0,113930.0,0.03232]
[1759212405737,1.95652634,113940.0,113930.0,0.03232]
[1759212409843,1.95661174,113940.0,113930.0,0.03232]
[1759212413044,1.23501174,113940.0,113930.0,0.03232]
[1759212413347,1.59581174,113940.0,113930.0,0.03232]
[1759212415748,0.79133174,113940.0,113930.0,0.03232]
[1759212415947,1.59549174,113940.0,113930.0,0.03232]
[1759212416150,0.51666387,113940.0,113930.0,0.03232]
[1759212416349,1.32078387,113940.0,113930.0,0.03232]
[1759212416548,1.59545174,113940.0,113930.0,0.03232]
[1759212416744,1.32078387,113940.0,113930.0,0.03232]
[1759212416949,1.59545174,113940.0,113930.0,0.04495]
[1759212417243,0.03438,113930.0,113920.0,0.110558]
[1759212417443,0.05554657,113930.0,113920.0,0.110558]
[1759212418561,0.14326197,113930.0,113920.0,0.110558]
[1759212421956,0.41792984,113930.0,113920.0,0.110558]
[1759212424161,0.48647146,113930.0,113920.0,0.110558]
[1759212428766,0.21180359,113930.0,113920.0,0.110558]
[1759212433970,0.21049703,113930.0,113920.0,0.110558]
[1759212434172,0.4851649,113930.0,113920.0,0.110558]
[1759212434666,0.4851649,113930.0,113920.0,0.1105644]
[1759212437176,0.4851649,113930.0,113920.0,0.02284]
[1759212445576,0.4851649,113930.0,113920.0,0.1105644]
[1759212445977,0.4851649,113930.0,113920.0,0.02284]
[1759212446178,0.8459649,113930.0,113920.0,0.02284]
[1759212448878,0.8459649,113930.0,113920.0,0.1105644]
[1759212449777,0.8459649,113930.0,113920.0,0.02284]
[1759212451084,0.57129703,113930.0,113920.0,0.02284]
[1759212451381,0.8459649,113930.0,113920.0,0.02284]
[1759212454383,0.84596108,113930.0,113920.0,0.29750405]
[1759212457385,0.57129703,113930.0,113920.0,0.29750405]
[1759212457583,0.84596108,113930.0,113920.0,0.82584]
[1759212457878,0.84596108,113930.0,113920.0,1.10050405]
[1759212460186,0.84596108,113930.0,113920.0,1.18822735]
[1759212460485,0.48516108,113930.0,113920.0,1.18822735]
[1759212460685,0.06854162,113930.0,113920.0,2.30008181]
[1759212460880,0.1095806,113940.0,113930.0,0.1240156]
[1759212461080,0.1095806,113940.0,113930.0,0.46186834]
[1759212461281,0.38424465,113940.0,113930.0,0.39867965]
[1759212461481,0.38424465,113940.0,113930.0,1.11388405]
[1759212462287,0.40024465,113940.0,113930.0,0.31696405]
[1759212462489,0.40024465,113940.0,113930.0,1.11984405]
[1759212463087,0.40024465,113940.0,113930.0,1.20756025]
[1759212463781,0.31253405,113940.0,113930.0,1.20756025]
[1759212463982,0.29653405,113940.0,113930.0,1.20156025]
[1759212464182,0.30453405,113940.0,113930.0,1.20156025]
[1759212464892,0.02987,113940.0,113930.0,1.20156025]
[1759212465190,0.30453405,113940.0,113930.0,1.20156025]
[1759212466490,0.02987,113940.0,113930.0,1.20156025]
[1759212466692,0.008,113940.0,113930.0,2.2370243]
[1759212467083,0.008,113940.0,113930.0,1.96236025]
[1759212469196,0.008,113940.0,113930.0,1.96216025]
[1759212470295,0.008,113940.0,113930.0,1.96212025]
[1759212470494,0.008,113940.0,113930.0,2.2367843]
[1759212470790,0.0004,113950.0,113940.0,0.0877083]
[1759212470986,0.29774405,113950.0,113940.0,0.39659235]
[1759212471394,0.02308,113950.0,113940.0,0.6712564]
[1759212471691,0.38544465,113950.0,113940.0,0.6712564]
[1759212471995,0.38544465,113950.0,113940.0,1.4808164]
[1759212471996,0.40044465,113950.0,113940.0,1.4808164]
[1759212472194,0.41144465,113950.0,113940.0,1.4808164]
[1759212472394,0.1363806,113950.0,113940.0,1.4808164]
[1759212472596,0.1367806,113950.0,113940.0,1.4808164]
[1759212472789,0.1367806,113950.0,113940.0,0.6782564]
[1759212472990,0.1367806,113950.0,113940.0,1.4808164]
[1759212473295,0.1367806,113950.0,113940.0,0.9314883]
[1759212473495,0.1367806,113950.0,113940.0,1.4808164]
[1759212475301,0.1367806,113950.0,113940.0,1.4806964]
[1759212475996,0.04908,113950.0,113940.0,1.4806964]
[1759212477692,0.04908,113950.0,113940.0,0.9313683]
[1759212477898,0.04908,113950.0,113940.0,1.4806164]
[1759212479001,0.1367806,113950.0,113940.0,0.6782564]
[1759212479198,0.1367806,113950.0,113940.0,1.4805764]
[1759212479798,0.1367806,113950.0,113940.0,0.6782564]
[1759212479998,0.1367806,113950.0,113940.0,1.4805764]
[1759212480400,0.1367806,113950.0,113940.0,0.6782564]
[1759212480599,0.1367806,113950.0,113940.0,1.4805364]
[1759212481794,0.1367806,113950.0,113940.0,0.6782564]
[1759212481994,0.1367806,113950.0,113940.0,1.4804964]
[1759212482403,0.1367806,113950.0,113940.0,1.4804564]
[1759212483294,0.1367806,113950.0,113940.0,0.6782564]
[1759212483595,0.1367806,113950.0,113940.0,1.4804564]
[1759212484003,0.04908,113950.0,113940.0,1.4804564]
[1759212484802,0.32374405,113950.0,113940.0,0.6782564]
[1759212484992,0.1367806,113950.0,113940.0,1.4804164]
[1759212486795,0.1367806,113950.0,113940.0,0.6782564]
[1759212486996,0.1367806,113950.0,113940.0,1.4803364]
[1759212488004,0.04908,113950.0,113940.0,1.4803364]
[1759212491602,0.04908,113950.0,113940.0,0.9310083]
[1759212491803,0.04908,113950.0,113940.0,1.4803364]
[1759212492808,0.1367807,113950.0,113940.0,0.6782564]
[1759212493005,0.04908,113950.0,113940.0,0.6782564]
[1759212493303,0.0264,113950.0,113940.0,1.90416509]
[1759212493499,0.01173721,113950.0,113940.0,1.90416509]
[1759212493698,0.01213721,113950.0,113940.0,2.11564045]
[1759212493898,0.01213721,113950.0,113940.0,1.91970719]
[1759212494104,0.01173721,113950.0,113940.0,1.91970719]
[1759212494305,0.01213721,113950.0,113940.0,1.91970719]
[1759212496406,0.01213721,113950.0,113940.0,1.98281782]
[1759212496608,0.01213721,113950.0,113940.0,1.90408703]
[1759212497108,0.01213721,113950.0,113940.0,2.57875108]
[1759212497614,0.01173721,113950.0,113940.0,2.57875108]
[1759212497796,0.01213721,113950.0,113940.0,2.57875108]
[1759212498108,0.01073721,113950.0,113940.0,2.57875108]
[1759212498302,0.01113721,113950.0,113940.0,2.51564045]
[1759212498503,0.01073721,113950.0,113940.0,2.57873829]
[1759212498703,0.01113721,113950.0,113940.0,2.57873829]
[1759212499009,0.01073721,113950.0,113940.0,2.57873829]
[1759212499214,0.01113721,113950.0,113940.0,2.57873829]
[1759212499513,0.01073721,113950.0,113940.0,2.57873829]
[1759212499705,0.01113721,113950.0,113940.0,2.57873829]
[1759212501008,0.09715597,113970.0,113960.0,0.1231226]
[1759212501211,0.65829405,113980.0,113970.0,0.1231149]
[1759212501411,0.65829405,113980.0,113970.0,0.39777895]
[1759212501611,0.74597125,113980.0,113970.0,0.39777895]
[1759212502012,0.74637125,113980.0,113970.0,0.39777895]
[1759212503312,0.74637125,113980.0,113970.0,1.19941895]
[1759212504010,0.74597125,113980.0,113970.0,1.19941895]
[1759212504311,0.75933145,113980.0,113970.0,1.19941895]
[1759212504514,0.75933145,113980.0,113970.0,0.39777895]
[1759212504714,0.77308145,113980.0,113970.0,1.19937895]
[1759212504910,0.51950652,113980.0,113970.0,1.19937895]
[1759212505110,0.79417057,113980.0,113970.0,1.19937895]
[1759212505315,0.86274524,113980.0,113970.0,1.19937895]
[1759212506414,0.86274524,113980.0,113970.0,0.39777895]
[1759212506616,0.86274524,113980.0,113970.0,1.19929895]
[1759212507415,0.86274524,113980.0,113970.0,0.39777895]
[1759212507616,0.86274524,113980.0,113970.0,0.9245949]
[1759212507815,0.86274524,113980.0,113970.0,1.19925895]
[1759212508113,1.53740929,113980.0,113970.0,0.02255]
[1759212508415,0.1242644,113970.0,113960.0,0.38490535]
[1759212508715,0.39892845,113970.0,113960.0,1.18678535]
[1759212508912,0.31124405,113970.0,113960.0,1.18678535]
[1759212509318,0.31124405,113970.0,113960.0,1.18674535]
[1759212510415,0.39892845,113970.0,113960.0,1.18674535]
[1759212510812,0.39892845,113970.0,113960.0,1.18670535]
[1759212511216,0.39892845,113970.0,113960.0,0.38530535]
[1759212511419,0.39892845,113970.0,113960.0,1.18670535]
[1759212512020,0.39892845,113970.0,113960.0,0.38530535]
[1759212512315,0.39892845,113970.0,113960.0,1.18666535]
[1759212513122,0.31124405,113970.0,113960.0,1.18666535]
[1759212513412,1.18080034,113970.0,113960.0,0.0004]
[1759212513617,1.18080034,113970.0,113960.0,0.80136]
[1759212513918,1.18080034,113970.0,113960.0,0.8894523]
[1759212514109,1.18080034,113970.0,113960.0,0.9120023]
[1759212515011,1.18080034,113970.0,113960.0,0.82431]
[1759212515213,1.18080034,113970.0,113960.0,0.82423]
[1759212516423,1.18065753,113970.0,113960.0,0.82423]
[1759212516818,1.18065753,113970.0,113960.0,0.02295]
[1759212517113,1.18065753,113970.0,113960.0,0.0004]
[1759212517714,1.18065753,113970.0,113960.0,0.02295]
[1759212518618,1.18065753,113970.0,113960.0,0.1106423]
[1759212519317,0.90613629,113970.0,113960.0,0.1106423]
[1759212519521,0.78065753,113970.0,113960.0,0.1106423]
[1759212520915,0.78065753,113970.0,113960.0,0.1102423]
[1759212521317,0.78425753,113970.0,113960.0,0.1114423]
[1759212526024,0.77725753,113970.0,113960.0,0.1114423]
[1759212530026,0.50273629,113970.0,113960.0,0.1114423]
[1759212530227,0.77725753,113970.0,113960.0,0.1114423]
[1759212534724,0.41645753,113970.0,113960.0,0.1114423]
[1759212534924,0.77725753,113970.0,113960.0,0.1114423]
[1759212536828,0.68957293,113970.0,113960.0,0.1241523]
[1759212537029,0.77725933,113970.0,113960.0,0.1241523]
[1759212537329,0.77725933,113970.0,113960.0,0.1114423]
[1759212540843,0.77729352,113970.0,113960.0,0.1114423]
[1759212541936,0.50277228,113970.0,113960.0,0.1114423]
[1759212542242,0.77729352,113970.0,113960.0,0.1114423]
[1759212542742,0.50277228,113970.0,113960.0,0.1114423]
[1759212543742,0.77729352,113970.0,113960.0,0.1114423]
[1759212545837,0.77729352,113970.0,113960.0,0.02375]
[1759212550347,0.77729352,113970.0,113960.0,0.0012]
[1759212552049,0.77729352,113970.0,113960.0,0.0016]
[1759212552850,0.50277228,113970.0,113960.0,0.02305]
[1759212553149,0.77729352,113970.0,113960.0,0.02305]
[1759212553650,0.50277228,113970.0,113960.0,0.02305]
[1759212553851,0.77729352,113970.0,113960.0,0.02305]
[1759212555746,0.77729352,113970.0,113960.0,0.1107435]
[1759212559448,0.50277228,113970.0,113960.0,0.1107435]
[1759212559750,0.77729352,113970.0,113960.0,0.1107435]
[1759212562349,0.77729352,113970.0,113960.0,0.02305]
[1759212563555,0.77729352,113970.0,113960.0,0.1107423]
[1759212564254,0.77729352,113970.0,113960.0,0.0892923]
[1759212564654,0.77729352,113970.0,113960.0,0.1112923]
[1759212565751,0.77729352,113970.0,113960.0,0.1142923]
[1759212566457,0.79829352,113970.0,113960.0,0.1132923]
[1759212575563,0.79829352,113970.0,113960.0,0.0912923]
[1759212576160,0.79829352,113970.0,113960.0,0.1132923]
[1759212577767,0.71060712,113970.0,113960.0,0.1132923]
[1759212578270,0.71058492,113970.0,113960.0,0.1132923]
[1759212578769,0.79827052,113970.0,113960.0,0.1132923]
[1759212579968,0.52377148,113970.0,113960.0,0.1132923]
[1759212580168,0.79827052,113970.0,113960.0,0.1132923]
[1759212582172,0.79467052,113970.0,113960.0,0.1132923]
[1759212582770,0.79467052,113970.0,113960.0,0.1120923]
[1759212584275,0.52017148,113970.0,113960.0,0.1120923]
[1759212584463,0.79467052,113970.0,113960.0,0.1120923]
[1759212586270,0.79467052,113970.0,113960.0,0.1116923]
[1759212586674,0.79467052,113970.0,113960.0,0.1128923]
[1759212586675,0.79827052,113970.0,113960.0,0.1128923]
[1759212587470,0.79827052,113970.0,113960.0,0.0032]
[1759212589572,0.52377148,113970.0,113960.0,0.0032]
[1759212589774,0.79827052,113970.0,113960.0,0.0032]
[1759212592576,0.79827052,113970.0,113960.0,0.02563]
[1759212593379,0.79827052,113970.0,113960.0,0.0032]
[1759212593674,0.79827052,113970.0,113960.0,0.02563]
[1759212596879,0.79827052,113970.0,113960.0,0.0032]
[1759212597181,0.79827052,113970.0,113960.0,0.02563]
[1759212599080,0.79827052,113970.0,113960.0,0.0032]
[1759212599472,1.47276956,113970.0,113960.0,0.0036]
[1759212599675,1.50414945,113970.0,113960.0,0.0036]
[1759212601381,1.47276956,113970.0,113960.0,0.0036]
[1759212602581,1.50414945,113970.0,113960.0,0.0036]
[1759212604983,1.47276956,113970.0,113960.0,0.0036]
[1759212606789,1.50414945,113970.0,113960.0,0.0036]
[1759212610186,1.48314945,113970.0,113960.0,0.0016]
[1759212610785,0.93415137,113970.0,113960.0,0.02403]
[1759212610987,1.97699052,113970.0,113960.0,0.02403]
[1759212611186,1.57699052,113970.0,113960.0,0.02403]
[1759212611884,1.57199052,113970.0,113960.0,0.02403]
[1759212618288,1.57199052,113970.0,113960.0,0.0016]
[1759212618487,1.57199052,113970.0,113960.0,0.02417]
[1759212622885,1.61499052,113970.0,113960.0,0.02917]
[1759212623090,1.61499052,113970.0,113960.0,0.0066]
[1759212630410,1.29749148,113970.0,113960.0,0.02417]
[1759212630606,1.29749148,113970.0,113960.0,0.02817]
[1759212630607,1.60699052,113970.0,113960.0,0.02817]
[1759212634910,1.60699052,113970.0,113960.0,0.0056]
[1759212638214,1.60700882,113970.0,113960.0,0.0056]
[1759212642918,1.33249148,113970.0,113960.0,0.0056]
[1759212643116,1.60700882,113970.0,113960.0,0.0056]
[1759212645620,1.88152616,113970.0,113960.0,0.0056]
[1759212646020,1.88152616,113970.0,113960.0,0.0052]
[1759212646221,1.88152616,113970.0,113960.0,0.0056]
[1759212646823,0.122351,113950.0,113940.0,0.02337]
[1759212647014,0.41797422,113950.0,113940.0,0.02337]
[1759212647822,0.77877422,113950.0,113940.0,0.02337]
[1759212648021,0.77877422,113950.0,113940.0,0.5102788]
[1759212648211,0.77877422,113950.0,113940.0,0.5106788]
[1759212649022,0.41655588,113950.0,113940.0,0.5106788]
[1759212649223,0.69107322,113950.0,113940.0,0.5106788]
[1759212650023,0.77877432,113950.0,113940.0,0.5106788]
[1759212651017,0.77877432,113950.0,113940.0,0.42297]
[1759212655128,0.77877432,113950.0,113940.0,0.5106798]
[1759212656430,0.77877432,113950.0,113940.0,0.42297]
[1759212656731,0.77877432,113950.0,113940.0,0.02297]
[1759212660431,0.49145698,113950.0,113940.0,0.1238785]
[1759212660732,0.13065698,113950.0,113940.0,0.1238785]
[1759212660927,0.04295588,113950.0,113940.0,0.39839584]
[1759212661127,0.02185,113950.0,113940.0,0.39839584]
[1759212661430,0.1098534,113960.0,113950.0,0.1232441]
[1759212661732,0.1318288,113960.0,113950.0,0.39776144]
[1759212661933,0.0441354,113960.0,113950.0,0.39776144]
[1759212662326,0.0441354,113960.0,113950.0,0.75856144]
[1759212662532,0.02216,113960.0,113950.0,0.75856144]
[1759212662833,0.02256,113960.0,113950.0,0.75856144]
[1759212664537,0.1102528,113960.0,113950.0,0.75856144]
[1759212664831,0.13142671,113960.0,113950.0,0.83447]
[1759212665031,0.49222671,113960.0,113950.0,1.10898734]
[1759212666635,0.49222671,113960.0,113950.0,1.19668914]
[1759212667638,0.50544671,113960.0,113950.0,1.19668914]
[1759212668136,0.50544671,113960.0,113950.0,1.20098914]
[1759212668434,0.0358,113970.0,113960.0,0.0876929]
[1759212668632,0.035,113970.0,113960.0,1.09615843]
[1759212668833,0.06857467,113980.0,113970.0,0.1217663]
[1759212669039,0.6796412,114010.0,114000.0,0.02235]
[1759212669236,0.6796412,114010.0,114000.0,0.29686734]
[1759212669428,0.1230412,114010.0,114000.0,0.29686734]
[1759212669828,0.1234412,114010.0,114000.0,0.29686734]
[1759212670229,0.03578,114010.0,114000.0,0.29686734]
[1759212670544,0.0339194,114010.0,114000.0,0.67086734]
[1759212670733,0.0339194,114010.0,114000.0,0.39635]
[1759212670734,0.0335194,114010.0,114000.0,0.39635]
[1759212670934,0.10251108,114010.0,114000.0,0.67086734]
[1759212671233,0.10251108,114010.0,114000.0,0.75853054]
[1759212672436,0.11573108,114010.0,114000.0,0.75853054]
[1759212673741,0.10251108,114010.0,114000.0,0.75853054]
[1759212675838,0.10251108,114010.0,114000.0,1.15853054]
[1759212676044,0.10211108,114010.0,114000.0,1.15853054]
[1759212676345,0.10251108,114010.0,114000.0,1.15853054]
[1759212676542,0.11543108,114010.0,114000.0,1.15853054]
[1759212678339,0.20308538,114010.0,114000.0,1.15853054]
[1759212679041,0.11543108,114010.0,114000.0,1.15853054]
[1759212679640,0.10251108,114010.0,114000.0,1.15853054]
[1759212681138,0.10251108,114010.0,114000.0,1.43304788]
[1759212681344,0.08035108,114010.0,114000.0,1.03304788]
[1759212681545,0.07995108,114010.0,114000.0,0.75853054]
[1759212681845,0.02371,114010.0,114000.0,0.75853054]
[1759212682044,0.03474462,114010.0,114000.0,0.75853054]
[1759212682340,0.01143462,114010.0,114000.0,1.03304788]
[1759212682547,0.01103462,114010.0,114000.0,1.43304788]
[1759212682746,0.03653,114030.0,114020.0,0.1102559]
[1759212683044,0.10498348,114030.0,114020.0,0.75877324]
[1759212683346,0.02331,114030.0,114020.0,0.75877324]
[1759212683746,0.02371,114030.0,114020.0,0.75877324]
[1759212683947,0.02371,114030.0,114020.0,0.67112734]
[1759212684246,0.1113482,114030.0,114020.0,0.67112734]
[1759212684646,0.12245233,114030.0,114020.0,0.67112734]
[1759212685247,0.12245233,114030.0,114020.0,0.31032734]
[1759212685440,0.41084967,114030.0,114020.0,0.02261]
[1759212685641,0.1015319,114020.0,114010.0,0.02261]
[1759212685850,0.1015319,114020.0,114010.0,1.09784734]
[1759212685851,0.1248419,114020.0,114010.0,1.09784734]
[1759212686050,0.1248419,114020.0,114010.0,1.45864734]
[1759212686346,0.02731,114020.0,114010.0,1.55950094]
[1759212690249,0.04119,114020.0,114010.0,1.54614094]
[1759212691643,0.04119,114020.0,114010.0,1.2716236]
[1759212691844,0.04119,114020.0,114010.0,1.54614094]
[1759212697565,0.04119,114020.0,114010.0,0.74558094]
[1759212697866,0.04119,114020.0,114010.0,1.54546094]
[1759212698254,0.04119,114020.0,114010.0,1.54514242]
[1759212698460,0.06217294,114020.0,114010.0,1.54514242]
[1759212699565,0.04829294,114020.0,114010.0,1.55834242]
[1759212702359,0.04829294,114020.0,114010.0,0.75846242]
[1759212702555,0.04829294,114020.0,114010.0,1.55818242]
[1759212704469,0.04829294,114020.0,114010.0,1.2839836]
[1759212704770,0.04829294,114020.0,114010.0,1.55818242]
[1759212709366,0.04832749,114020.0,114010.0,1.55818242]
[1759212710169,0.04832749,114020.0,114010.0,1.2839836]
[1759212710370,0.04832749,114020.0,114010.0,1.55818242]
[1759212712775,0.04832749,114020.0,114010.0,1.2839836]
[1759212712966,0.04832749,114020.0,114010.0,1.55818242]
[1759212715276,0.04832749,114020.0,114010.0,1.6212722]
[1759212716274,0.04832749,114020.0,114010.0,1.55818242]